fUSD/lending_fUSD_20240422
["ID","MTS","AMOUNT","RATE_DAILY","PERIOD"]
[323157320,1713744056650,250.0,0.00011387,2]
[323157321,1713744227948,181.45,0.00011405,2]
[323157322,1713744268357,624.23,9.506e-05,2]
[323157323,1713744269333,624.23,0.0001177,2]
[323157324,1713744329113,680.01,0.00011422,2]
[323157325,1713744391794,202.0,0.000273,120]
[323157326,1713744602954,10000.0,0.00011409,2]
[323157338,1713744632132,-387.49,0.00012056,2]
[323157339,1713744632142,-387.49,0.00012059,2]
[323157340,1713744632152,-387.49,0.00012062,2]
[323157341,1713744632162,-387.49,0.00012066,2]
[323157342,1713744632173,-387.49,0.00012069,2]
[323157343,1713744632183,-387.49,0.00012072,2]
[323157344,1713744632193,-387.49,0.00012075,2]
[323157345,1713744632203,-387.49,0.00012078,2]
[323157346,1713744632216,-387.49,0.00012082,2]
[323157347,1713744632225,-387.49,0.00012085,2]
[323157348,1713744632235,-664.17,0.00012085,2]
[323157349,1713744632245,-10208.97,0.00012085,2]
[323157350,1713744632254,-499.99,0.00012085,2]
[323157351,1713744632264,-17968.61,0.00012085,2]
[323157352,1713744632273,-150.99,0.00012085,2]
[323157354,1713744632283,-358.44,0.00012085,2]
[323157357,1713744632293,-387.49,0.00012088,2]
[323157359,1713744632302,-387.49,0.00012091,2]
[323157360,1713744632311,-387.49,0.00012094,2]
[323157361,1713744632322,-387.49,0.00012097,2]
[323157362,1713744632331,-387.49,0.00012101,2]
[323157363,1713744632341,-1000.0,0.00012101,2]
[323157364,1713744632350,-387.49,0.00012104,2]
[323157365,1713744632360,-387.49,0.00012107,2]
[323157366,1713744632370,-387.49,0.0001211,2]
[323157367,1713744632379,-387.49,0.00012113,2]
[323157368,1713744632388,-387.49,0.00012117,2]
[323157369,1713744632398,-1251.46309536,0.00012347,2]
[323157370,1713744632407,-1923.04941809,0.00012414,2]
[323157371,1713744632416,-163.87,0.00012639,2]
[323157372,1713744632426,-681.17948523,0.0001274,2]
[323157373,1713744632437,-20091.9704,0.0001275,2]
[323157374,1713744632446,-1827.993,0.00012788,2]
[323157375,1713744632456,-431.534,0.00012788,2]
[323157376,1713744632465,-399.0,0.00012788,2]
[323157377,1713744632475,-1472.0,0.00012788,2]
[323157378,1713744632484,-150.0,0.00012788,2]
[323157379,1713744632494,-3119.0,0.00012788,2]
[323157380,1713744632503,-2441.0,0.00012788,2]
[323157381,1713744632512,-214.0,0.00012788,2]
[323157382,1713744632522,-1638.0,0.00012788,2]
[323157383,1713744632531,-443.0,0.00012788,2]
[323157384,1713744632541,-1140.0,0.00012788,2]
[323157385,1713744632550,-195.0,0.00012788,2]
[323157386,1713744632559,-5892.0,0.00012827,2]
[323157387,1713744632569,-37682.0,0.00012827,2]
[323157388,1713744632578,-2705.0,0.00012827,2]
[323157389,1713744632587,-5728.0,0.00012827,2]
[323157390,1713744632597,-1055.0,0.00012827,2]
[323157391,1713744632606,-181.45,0.00012831,2]
[323157392,1713744632617,-408.72028462,0.00012848,2]
[323157393,1713744632626,-257.12442546,0.00012849,2]
[323157394,1713744632635,-500.0,0.0001285,2]
[323157395,1713744632645,-11841.76175244,0.0001285,2]
[323157396,1713744632662,-230801.16694756,0.0001285,2]
[323157397,1713744632672,-191.22518,0.0001286,2]
[323157398,1713744632684,-154.74520019,0.00012869,2]
[323157399,1713744632694,-1000.0,0.00012895,2]
[323157400,1713744632704,-1000.0,0.00012896,2]
[323157401,1713744632714,-500.0,0.00012896,2]
[323157402,1713744632723,-229.30372496,0.00012897,2]
[323157403,1713744632733,-1000.0,0.00012899,2]
[323157404,1713744632744,-172.05665628,0.0001294,2]
[323157405,1713744632753,-191.22519,0.0001294,2]
[323157406,1713744632764,-138948.51886397,0.00012949,2]
[323157407,1713744632774,-212.1,0.0001295,2]
[323157408,1713744632783,-1393.0,0.0001295,2]
[323157409,1713744632793,-459.0,0.0001295,2]
[323157410,1713744632802,-541.0,0.0001295,2]
[323157411,1713744632811,-1218.0,0.0001295,2]
[323157412,1713744632821,-408.10113394,0.0001295,2]
[323157413,1713744632830,-3432.98111997,0.0001295,2]
[323157414,1713744632839,-191.22518,0.0001295,2]
[323157415,1713744632849,-191.22519,0.0001295,2]
[323157416,1713744632859,-2770.24562786,0.00012985,2]
[323157417,1713744632868,-1827.7124637,0.00012988,2]
[323157418,1713744632878,-6297.81988465,0.00012988,2]
[323157419,1713744632906,-286.634,0.00012988,2]
[323157420,1713744632962,-617.92920426,0.00012988,2]
[323157421,1713744632974,-2541.62399859,0.00012988,2]
[323157422,1713744632985,-244.7953584,0.00012988,2]
[323157423,1713744632997,-204.41433632,0.00012989,2]
[323157424,1713744633006,-155.0,0.00012997,2]
[323157425,1713744633016,-201.18547988,0.00012997,2]
[323157426,1713744633026,-1013.90044479,0.00012997,2]
[323157427,1713744633035,-204.42152746,0.00012997,2]
[323157428,1713744633046,-160.38595136,0.00012997,2]
[323157429,1713744633056,-811.41448345,0.00012997,2]
[323157430,1713744633065,-365.5691864,0.00012997,2]
[323157431,1713744633075,-1251.85831732,0.00012997,2]
[323157432,1713744633136,-1318.81004268,0.00012997,2]
[323157433,1713744633146,-155.0,0.00012997,2]
[323157434,1713744633155,-451.88995733,0.00012997,2]
[323157435,1713744633167,-349.05682131,0.00012997,2]
[323157436,1713744633176,-440.06276948,0.00012997,2]
[323157437,1713744633186,-29.14098599,0.00012997,2]
[323157438,1713744633198,-136.63738915,0.00012997,2]
[323157439,1713744633207,-349.16549756,0.00012997,2]
[323157440,1713744633219,-1952.95276541,0.00012997,2]
[323157441,1713744633228,-1738.0027851,0.00012997,2]
[323157442,1713744633237,-1747.43824547,0.00012997,2]
[323157456,1713744637578,-771.07115909,0.00012997,2]
[323157457,1713744637589,-882.06164822,0.00012997,2]
[323157458,1713744637838,-1315.97614722,0.00012997,2]
[323157459,1713744637848,-1242.3939512,0.00012998,2]
[323157460,1713744637857,-306.82378869,0.00012998,2]
[323157461,1713744637867,-266.93732489,0.00012998,2]
[323157462,1713744637876,-342.81596001,0.00012998,2]
[323157463,1713744637886,-156.6652945,0.00012998,2]
[323157464,1713744637895,-251.97383923,0.00012998,2]
[323157465,1713744637905,-155.0,0.00012998,2]
[323157468,1713744637914,-195.24769107,0.00012998,2]
[323157470,1713744637925,-3718.18327738,0.00012998,2]
[323157471,1713744637934,-156.40548215,0.00012998,2]
[323157472,1713744637944,-155.0,0.00012998,2]
[323157473,1713744637953,-157.23873025,0.00012998,2]
[323157474,1713744637962,-155.46859804,0.00012998,2]
[323157475,1713744637971,-619.0,0.00012999,2]
[323157476,1713744637981,-303.56641368,0.00012999,2]
[323157477,1713744637993,-5217.72513902,0.00012999,2]
[323157478,1713744639569,-5.09932058,0.00012999,2]
[323157479,1713744639601,-239129.22,0.00012999,2]
[323157480,1713744639669,-64347.60664413,0.00012999,2]
[323157481,1713744639680,-37522.67355797,0.00012999,2]
[323157482,1713744639736,-9868.74574742,0.00012999,2]
[323157483,1713744639747,-7454.5,0.00012999,2]
[323157484,1713744639800,-575.26106839,0.00012999,2]
[323157485,1713744639811,-373.01299995,0.00012999,2]
[323157486,1713744639938,-950.36,0.00012999,2]
[323157487,1713744639952,-664.58225843,0.00012999,2]
[323157509,1713744642628,-49034.69473394,0.00012999,2]
[323157510,1713744642640,-28591.4731114,0.00012999,2]
[323157511,1713744642651,-2064.21303002,0.00012999,2]
[323157512,1713744642660,-23086.76050786,0.00013,2]
[323157513,1713744642671,-17400.0,0.00013,2]
[323157514,1713744642863,-6399.8147,0.00013,2]
[323157515,1713744642963,-470.23000002,0.00013,2]
[323157518,1713744646594,-3639.3868,0.00013,2]
[323157519,1713744646653,-13200.0,0.00013,2]
[323157520,1713744646714,-1139.45153232,0.00013,2]
[323157521,1713744646725,-263.63284643,0.00013,2]
[323157525,1713744757702,634.21,0.00010636,2]
[323157526,1713744778934,1000.0,0.00013698,5]
[323157527,1713744814325,155.44,0.00011968,2]
[323157528,1713744814530,155.44,0.00011983,2]
[323157529,1713744814745,155.44,0.00011998,2]
[323157535,1713744837942,1000.0,0.00011947,2]
[323157536,1713744859614,16000.0,0.00012,2]
[323157537,1713744955589,23900.0,0.0001193,2]
[323157538,1713745015873,1031.0,0.00011953,2]
[323157539,1713745051219,162.5,0.00011975,2]
[323157540,1713745088575,5569.34,0.00011975,2]
[323157541,1713745110504,156.08,0.00011975,2]
[323157542,1713745221806,151.1,0.00011941,2]
[323157543,1713745452126,414.8,0.00011796,2]
[323157544,1713745508194,523.86545643,0.00012,2]
[323157545,1713745509538,602.49,9.874e-05,2]
[323157546,1713745650598,687.0,0.00011803,2]
[323157547,1713745799250,154.17,0.0001194,2]
[323157548,1713745799427,154.17,0.00011978,2]
[323157549,1713745813464,1750.0,0.00012,2]
[323157570,1713745831730,800.0,0.00011654,2]
[323157572,1713745831805,-155.44,0.00012013,2]
[323157573,1713745831814,-154.17,0.00012017,2]
[323157574,1713745831824,-155.44,0.00012028,2]
[323157575,1713745831833,-154.17,0.00012056,2]
[323157576,1713745831843,-154.17,0.00012095,2]
[323157577,1713745831853,-154.17,0.00012134,2]
[323157578,1713745831863,-602.49,0.00012138,2]
[323157579,1713745831872,-154.17,0.00012173,2]
[323157580,1713745831882,-200.0,0.00012191,2]
[323157581,1713745831892,-154.17,0.00012212,2]
[323157582,1713745831901,-154.17,0.00012251,2]
[323157583,1713745831910,-154.17,0.0001229,2]
[323157584,1713745831920,-154.17,0.00012328,2]
[323157585,1713745831930,-323.85652974,0.00012348,2]
[323157586,1713745831939,-154.17,0.00012367,2]
[323157587,1713745831949,-499.99,0.00012387,2]
[323157588,1713745831960,-154.17,0.00012406,2]
[323157589,1713745831970,-154.17,0.00012445,2]
[323157590,1713745831978,-154.17,0.00012484,2]
[323157591,1713745831988,-154.17,0.00012523,2]
[323157592,1713745831997,-154.17,0.00012562,2]
[323157593,1713745832007,-150.99,0.00012727,2]
[323157594,1713745832016,-1147.15889922,0.0001274,2]
[323157595,1713745832025,-174.59,0.00012788,2]
[323157596,1713745832035,-635.0117,0.0001285,2]
[323157597,1713745832044,-1091.5843,0.000129,2]
[323157598,1713745832054,-251.7089,0.000129,2]
[323157599,1713745832063,-1748.0918,0.000129,2]
[323157600,1713745832072,-3196.66448504,0.000129,2]
[323157601,1713745832084,-1357.62885533,0.000129,2]
[323157602,1713745832096,-5468.5,0.000129,2]
[323157603,1713745832107,-9499.39207902,0.000129,2]
[323157604,1713745832119,-1224.21330995,0.000129,2]
[323157605,1713745832151,-3819.27393932,0.000129,2]
[323157606,1713745832196,-39344.70083134,0.000129,2]
[323157607,1713745832209,-612.0,0.0001295,2]
[323157608,1713745832218,-1140.0,0.0001295,2]
[323157609,1713745832228,-195.0,0.0001295,2]
[323157610,1713745832243,-5892.0,0.0001295,2]
[323157611,1713745832252,-5728.0,0.0001295,2]
[323157612,1713745832261,-37682.0,0.0001295,2]
[323157613,1713745832271,-2705.0,0.0001295,2]
[323157614,1713745832280,-538.0,0.0001295,2]
[323157615,1713745832289,-1924.6197373,0.00012989,2]
[323157616,1713745832298,-334.5175051,0.00012989,2]
[323157617,1713745832308,-8702.5871843,0.00012989,2]
[323157618,1713745832318,-2215.04376637,0.00012998,2]
[323157619,1713745832328,-786.99155585,0.00012998,2]
[323157620,1713745832338,-155.0,0.00012998,2]
[323157621,1713745832353,-276.68992498,0.00012998,2]
[323157622,1713745832366,-1548.15977251,0.00012999,2]
[323157623,1713745832375,-10000.0,0.00012999,2]
[323157624,1713745832386,-44109.27099523,0.00013,2]
[323157625,1713745832398,-3932.56776875,0.00013,2]
[323157626,1713745832423,-321.58788886,0.00013,2]
[323157627,1713745832436,-883.54995,0.00013,2]
[323157628,1713745832447,-846.47,0.00013,2]
[323157629,1713745832464,-350.2299999,0.00013,2]
[323157630,1713745832476,-47549.40997936,0.00013,2]
[323157631,1713745832488,-358.22005688,0.00013,2]
[323157642,1713745838196,-1055.0,0.0001285,2]
[323157643,1713745838207,-18520.40619304,0.00013,2]
[323157654,1713745840195,-238462.42882189,0.00013,2]
[323157655,1713745840206,-8582.89202177,0.00013,2]
[323157656,1713745840222,-5965.07304985,0.00013,2]
[323157657,1713745840231,-191.22519,0.00013,2]
[323157658,1713745840241,-191.22518,0.00013,2]
[323157659,1713745840250,-444.18739039,0.0001305,2]
[323157660,1713745840259,-163.87,0.00013053,2]
[323157661,1713745840268,-800.0,0.0001311,2]
[323157662,1713745840278,-1104.64790049,0.00013424,2]
[323157663,1713745840287,-86.990084,0.00013425,2]
[323157664,1713745840298,-413.009916,0.00013425,2]
[323157665,1713745840308,-150.0,0.00013466,2]
[323157666,1713745840317,-1000.0,0.000135,2]
[323157667,1713745840326,-7380.77394862,0.00013537,2]
[323157668,1713745840338,-9077.54866152,0.00013537,2]
[323157669,1713745840349,-8943.84023489,0.00013537,2]
[323157670,1713745840440,-21173.25356204,0.00013537,2]
[323157671,1713745840449,-150.0,0.0001365,2]
[323157672,1713745840458,-204.41433632,0.00013689,2]
[323157673,1713745840470,-200.0,0.00013699,2]
[323157674,1713745840479,-200.0,0.00013699,2]
[323157675,1713745840489,-200.0,0.00013699,2]
[323157676,1713745840498,-200.0,0.00013699,2]
[323157677,1713745840507,-200.0,0.00013699,2]
[323157678,1713745840518,-500.0,0.00013699,2]
[323157679,1713745840527,-500.0,0.00013699,2]
[323157680,1713745840537,-500.0,0.00013699,2]
[323157681,1713745840546,-500.0,0.00013699,2]
[323157682,1713745840554,-500.0,0.00013699,2]
[323157683,1713745840564,-500.0,0.00013699,2]
[323157684,1713745840573,-516.488393,0.00013699,2]
[323157685,1713745840582,-200.0,0.00013699,2]
[323157686,1713745840592,-200.0,0.00013699,2]
[323157687,1713745840601,-2038.0,0.00013699,2]
[323157688,1713745840610,-1460.0,0.00013699,2]
[323157689,1713745840620,-500.0,0.00013699,2]
[323157690,1713745840629,-8192.36,0.00013699,2]
[323157691,1713745840638,-1153.97,0.00013699,2]
[323157692,1713745840648,-1500.0,0.00013699,2]
[323157693,1713745840657,-10242.27,0.00013699,2]
[323157694,1713745840667,-200.0,0.00013699,2]
[323157695,1713745840676,-2751.0,0.00013699,2]
[323157696,1713745840685,-371.79860069,0.000137,2]
[323157697,1713745840695,-250.0,0.000137,2]
[323157698,1713745840704,-1250.0,0.000137,2]
[323157699,1713745840715,-737.22,0.000137,2]
[323157700,1713745840725,-737.22,0.000137,2]
[323157701,1713745840734,-200.0,0.00013715,2]
[323157702,1713745840743,-163.87,0.00013977,2]
[323157703,1713745840753,-408.81570655,0.00014,2]
[323157704,1713745840762,-1800.0,0.00014,2]
[323157705,1713745840771,-183.44298,0.00014157,2]
[323157706,1713745840781,-2500.0,0.00014212,2]
[323157707,1713745840790,-181.45,0.00014257,2]
[323157708,1713745840799,-2316.03954563,0.00014312,2]
[323157709,1713745840809,-737.22,0.00014332,2]
[323157710,1713745840818,-31245.79898891,0.00014343,2]
[323157711,1713745840827,-183.44297996,0.00014343,2]
[323157712,1713745840836,-12341.93228229,0.00014355,2]
[323157713,1713745840846,-150.28,0.00014358,2]
[323157714,1713745840855,-20130.53032467,0.00014368,2]
[323157715,1713745840867,-3800.205,0.00014368,2]
[323157716,1713745840879,-7315.06366424,0.00014368,2]
[323157717,1713745840889,-150.28,0.0001437,2]
[323157718,1713745840899,-31245.79898891,0.00014371,2]
[323157719,1713745840909,-737.22,0.00014371,2]
[323157720,1713745840919,-31245.79898891,0.00014375,2]
[323157721,1713745840928,-151.612979,0.00014375,2]
[323157722,1713745840937,-151.0,0.00014375,2]
[323157723,1713745840946,-151.0,0.00014375,2]
[323157724,1713745840956,-151.0,0.00014375,2]
[323157725,1713745840966,-151.0,0.00014375,2]
[323157726,1713745840975,-151.0,0.00014375,2]
[323157727,1713745840984,-151.0,0.00014375,2]
[323157728,1713745840993,-151.0,0.00014375,2]
[323157729,1713745841002,-31245.79898891,0.00014375,2]
[323157730,1713745841011,-31245.79898891,0.0001438,2]
[323157731,1713745841021,-31245.79898891,0.00014381,2]
[323157732,1713745841030,-174.59,0.00014386,2]
[323157733,1713745841039,-150.28,0.00014388,2]
[323157734,1713745841049,-31245.79898891,0.00014396,2]
[323157735,1713745841058,-152.164871,0.00014398,2]
[323157736,1713745841068,-151.0,0.00014398,2]
[323157737,1713745841076,-151.0,0.00014398,2]
[323157738,1713745841085,-152.501913,0.00014398,2]
[323157739,1713745841094,-151.0,0.00014398,2]
[323157740,1713745841103,-151.736717,0.00014398,2]
[323157741,1713745841112,-265.315578,0.00014398,2]
[323157742,1713745841121,-151.0,0.00014398,2]
[323157743,1713745841130,-152.858636,0.00014398,2]
[323157744,1713745841139,-151.0,0.00014398,2]
[323157745,1713745841148,-151.0,0.00014398,2]
[323157746,1713745841158,-151.0,0.00014398,2]
[323157747,1713745841167,-151.0,0.00014398,2]
[323157748,1713745841177,-151.289592,0.00014398,2]
[323157749,1713745841186,-151.0,0.00014398,2]
[323157750,1713745841194,-151.0,0.00014398,2]
[323157751,1713745841204,-151.0,0.00014398,2]
[323157752,1713745841212,-94.26020754,0.00014398,2]
[323157794,1713745842899,-56.73979246,0.00014398,2]
[323157795,1713745842908,-151.0,0.00014398,2]
[323157796,1713745842917,-177.582452,0.00014398,2]
[323157797,1713745842926,-151.0,0.00014398,2]
[323157798,1713745842934,-152.097276,0.00014398,2]
[323157799,1713745842943,-152.301067,0.00014398,2]
[323157800,1713745842952,-151.0,0.00014398,2]
[323157801,1713745842961,-151.184564,0.00014398,2]
[323157802,1713745842971,-151.0,0.00014398,2]
[323157803,1713745842980,-151.0,0.00014398,2]
[323157804,1713745842989,-151.0,0.00014398,2]
[323157805,1713745842997,-195.769626,0.00014398,2]
[323157806,1713745843006,-151.0,0.00014398,2]
[323157807,1713745843015,-151.0,0.00014398,2]
[323157808,1713745843024,-151.0,0.00014398,2]
[323157809,1713745843033,-151.0,0.00014398,2]
[323157810,1713745843043,-151.0,0.00014398,2]
[323157811,1713745843051,-152.126066,0.00014398,2]
[323157812,1713745843061,-151.0,0.00014398,2]
[323157813,1713745843070,-151.0,0.00014398,2]
[323157814,1713745843079,-151.0,0.00014398,2]
[323157815,1713745843089,-151.649388,0.00014398,2]
[323157816,1713745843098,-151.0,0.00014398,2]
[323157817,1713745843107,-151.0,0.00014398,2]
[323157818,1713745843117,-151.0,0.00014398,2]
[323157819,1713745843126,-151.0,0.00014398,2]
[323157820,1713745843135,-152.337515,0.00014398,2]
[323157821,1713745843144,-151.177181,0.00014398,2]
[323157822,1713745843154,-152.046983,0.00014398,2]
[323157823,1713745843163,-151.0,0.00014398,2]
[323157824,1713745843172,-151.311277,0.00014398,2]
[323157825,1713745843182,-245.601032,0.00014398,2]
[323157826,1713745843191,-151.0,0.00014398,2]
[323157827,1713745843200,-151.0,0.00014398,2]
[323157828,1713745843209,-151.0,0.00014398,2]
[323157829,1713745843219,-151.0,0.00014398,2]
[323157830,1713745843229,-151.0,0.00014398,2]
[323157831,1713745843238,-151.0,0.00014398,2]
[323157832,1713745843247,-151.0,0.00014398,2]
[323157833,1713745843257,-151.0,0.00014398,2]
[323157834,1713745843265,-151.0,0.00014398,2]
[323157835,1713745843274,-151.0,0.00014398,2]
[323157837,1713745843283,-152.402741,0.00014398,2]
[323157838,1713745843293,-151.0,0.00014398,2]
[323157842,1713745843303,-151.0,0.00014398,2]
[323157844,1713745843312,-174.102707,0.00014398,2]
[323157846,1713745843321,-151.0,0.00014398,2]
[323157847,1713745843330,-151.0,0.00014398,2]
[323157849,1713745843340,-152.802435,0.00014398,2]
[323157852,1713745843349,-151.0,0.00014398,2]
[323157853,1713745843361,-151.0,0.00014398,2]
[323157854,1713745843371,-151.0,0.00014398,2]
[323157855,1713745843381,-151.0,0.00014398,2]
[323157856,1713745843391,-151.0,0.00014398,2]
[323157857,1713745843400,-151.0,0.00014398,2]
[323157858,1713745843409,-151.0,0.00014398,2]
[323157859,1713745843420,-151.0,0.00014398,2]
[323157860,1713745843430,-151.0,0.00014398,2]
[323157861,1713745843439,-151.0,0.00014398,2]
[323157862,1713745843449,-151.0,0.00014398,2]
[323157863,1713745843458,-152.770736,0.00014398,2]
[323157864,1713745843468,-151.0,0.00014398,2]
[323157865,1713745843478,-151.0,0.00014398,2]
[323157866,1713745843488,-151.0,0.00014398,2]
[323157867,1713745843497,-151.0,0.00014398,2]
[323157868,1713745843506,-24028.32871241,0.00014398,2]
[323157869,1713745843573,-1175.32436678,0.00014398,2]
[323157870,1713745843620,-600.64996105,0.00014398,2]
[323157871,1713745845992,-5441.49594867,0.00014398,2]
[323157872,1713745846002,-868.83711782,0.000144,2]
[323157873,1713745846011,-602.49,0.00014402,2]
[323157874,1713745846021,-1000.0,0.000145,2]
[323157875,1713745846030,-6487.17693351,0.00014504,2]
[323157876,1713745846041,-1165.14432579,0.00014504,2]
[323157898,1713745982971,264.66671062,0.000273,120]
[323157899,1713746029999,20000.0,0.00012,2]
[323157903,1713746143678,18000.0,0.00011,2]
[323157904,1713746155494,532.37,0.00011311,2]
[323157905,1713746165146,163.99,0.00023225,120]
[323157907,1713746676450,505.75,0.00011208,2]
[323157908,1713746714362,2000.0,0.00011,2]
[323157915,1713747032461,-12606.8557406,0.00012489,2]
[323157916,1713747032470,-194.17540046,0.00012489,2]
[323157926,1713747038145,-371.10572905,0.00012489,2]
[323157927,1713747038156,-910.59389049,0.0001249,2]
[323157928,1713747038208,-14640.00610951,0.0001249,2]
[323157929,1713747038218,-331.03112818,0.00012492,2]
[323157930,1713747038230,-150.0,0.00012494,2]
[323157931,1713747038238,-16964.33874389,0.000125,2]
[323157933,1713747038285,-635.451628,0.000125,2]
[323157936,1713747039944,-2400.20962811,0.000125,2]
[323157937,1713747039954,-480.0,0.00012652,2]
[323157938,1713747039964,-174.96,0.00012755,2]
[323157939,1713747039973,-150.04,0.00012889,2]
[323157940,1713747039982,-693.04588733,0.00012899,2]
[323157941,1713747039993,-352.0462,0.000129,2]
[323157942,1713747040001,-150.99,0.000129,2]
[323157943,1713747040011,-23900.0,0.00012996,2]
[323157944,1713747040021,-20000.0,0.00013,2]
[323157945,1713747040030,-520.0,0.00013095,2]
[323157946,1713747040040,-348.82,0.00013095,2]
[323157947,1713747040049,-195.0,0.000131,2]
[323157948,1713747040058,-499.99,0.000131,2]
[323157949,1713747040067,-21231.954,0.000131,2]
[323157950,1713747040076,-3980.691,0.000131,2]
[323157951,1713747040085,-1096.97,0.000131,2]
[323157952,1713747040095,-5728.0,0.000131,2]
[323157953,1713747040104,-1055.0,0.000131,2]
[323157954,1713747040113,-457.32,0.00013135,2]
[323157955,1713747040124,-176.6,0.0001316,2]
[323157956,1713747040134,-500.0,0.00013425,2]
[323157957,1713747040143,-505.75,0.00013472,2]
[323157958,1713747040154,-20000.0,0.000135,2]
[323157959,1713747040163,-48775.29171001,0.00013698,2]
[323157960,1713747040173,-200.0,0.00013699,2]
[323157961,1713747040182,-200.0,0.00013699,2]
[323157962,1713747040191,-200.0,0.00013699,2]
[323157963,1713747040201,-500.0,0.00013699,2]
[323157964,1713747040210,-500.0,0.00013699,2]
[323157965,1713747040219,-500.0,0.00013699,2]
[323157966,1713747040229,-516.488393,0.00013699,2]
[323157967,1713747040238,-200.0,0.00013699,2]
[323157968,1713747040248,-2038.0,0.00013699,2]
[323157969,1713747040257,-1460.0,0.00013699,2]
[323157970,1713747040267,-8192.36,0.00013699,2]
[323157971,1713747040276,-1153.97,0.00013699,2]
[323157972,1713747040285,-10242.27,0.00013699,2]
[323157973,1713747040294,-1500.0,0.00013699,2]
[323157974,1713747040304,-2751.0,0.00013699,2]
[323157975,1713747040313,-500.0,0.00013699,2]
[323157976,1713747040322,-200.0,0.00013699,2]
[323157977,1713747040331,-1250.0,0.000137,2]
[323157978,1713747040340,-245.39093269,0.00013887,2]
[323157979,1713747040350,-245.39093269,0.00013887,2]
[323157980,1713747040359,-2704.42,0.00013887,2]
[323157981,1713747040368,-2704.42,0.00013887,2]
[323157982,1713747040377,-2704.42,0.00013887,2]
[323157983,1713747040387,-2704.42,0.00013887,2]
[323157984,1713747040396,-2704.42,0.00013887,2]
[323157985,1713747040405,-2704.42,0.00013887,2]
[323157986,1713747040414,-2704.42,0.00013887,2]
[323157987,1713747040424,-2704.42,0.00013887,2]
[323157988,1713747040433,-2704.42,0.00013887,2]
[323157989,1713747040442,-2704.42,0.00013889,2]
[323157990,1713747040452,-500.0,0.0001389,2]
[323157991,1713747040461,-696.00078713,0.00013897,2]
[323157992,1713747040471,-1663794.97889171,0.00013897,2]
[323157993,1713747040480,-224958.4673,0.00013899,2]
[323157994,1713747040489,-308.05787028,0.00013972,2]
[323157995,1713747040499,-10000.0,0.00013998,2]
[323157996,1713747040508,-101870.2802021,0.00013999,2]
[323157997,1713747040518,-222.184184,0.00013999,2]
[323157998,1713747040527,-151.0,0.00013999,2]
[323157999,1713747040536,-151.0,0.00013999,2]
[323158000,1713747040545,-151.0,0.00013999,2]
[323158001,1713747040554,-151.0,0.00013999,2]
[323158002,1713747040563,-151.0,0.00013999,2]
[323158003,1713747040572,-186.982268,0.00013999,2]
[323158004,1713747040581,-151.0,0.00013999,2]
[323158005,1713747040591,-20000.0,0.00014,2]
[323158006,1713747040600,-700.0,0.00014,2]
[323158007,1713747040609,-408.98668893,0.00014,2]
[323158008,1713747040618,-151.0,0.00014,2]
[323158009,1713747040627,-151.0,0.00014,2]
[323158010,1713747040636,-151.0,0.00014,2]
[323158011,1713747040645,-151.0,0.00014,2]
[323158012,1713747040654,-150.32,0.00014,2]
[323158013,1713747040664,-150.32,0.00014,2]
[323158014,1713747040676,-150.32,0.00014,2]
[323158015,1713747040685,-150.32,0.00014,2]